bitfinex/quotes_ETHUSD_20260120
["timestamp","ask_amount","ask_price","bid_price","bid_amount"]
[1768933041136,0.545,3007.6,3007.0,0.002]
[1768933041318,4.6076065,3007.5,3007.0,0.002]
[1768933041554,0.46841877,3007.5,3007.0,0.002]
[1768933041861,4.67477264,3007.6,3007.0,0.002]
[1768933042166,4.12977264,3007.4,3007.0,0.002]
[1768933042839,3.86995529,3007.6,3007.0,0.002]
[1768933043448,7.98133489,3007.6,3007.0,0.002]
[1768933044069,4.1113796,3007.5,3007.0,0.002]
[1768933044366,1.13062902,3007.4,3006.5,8.77738996]
[1768933044580,0.545,3007.3,3006.5,8.77738996]
[1768933045832,4.63822029,3007.3,3006.5,8.77738996]
[1768933046260,3.32535248,3007.2,3006.5,8.77738996]
[1768933046473,3.87035248,3007.2,3006.5,8.77738996]
[1768933046676,3.87035248,3007.2,3006.8,0.002]
[1768933046878,0.79635728,3007.1,3006.5,8.77938996]
[1768933047247,0.545,3007.0,3006.5,8.77938996]
[1768933048270,3.87059609,3007.0,3006.5,8.77938996]
[1768933048497,3.87059609,3007.0,3006.5,8.62968882]
[1768933048781,0.545,3006.9,3006.5,8.77938996]
[1768933048955,0.545,3006.8,3006.5,8.77938996]
[1768933052182,0.46900568,3006.8,3006.5,8.77938996]
[1768933053485,0.545,3007.0,3006.5,9.65732896]
[1768933053689,4.15752059,3007.7,3006.5,9.65732896]
[1768933053992,0.545,3007.6,3006.6,8.77738996]
[1768933054985,0.545,3007.7,3006.6,8.77738996]
[1768933055192,0.545,3007.7,3006.8,8.77738996]
[1768933055402,3.86982127,3007.7,3006.8,8.77738996]
[1768933055569,0.545,3007.7,3006.8,8.77738996]
[1768933057091,3.32499704,3007.6,3006.6,8.77738996]
[1768933057320,4.11651969,3007.4,3006.6,8.77738996]
[1768933058608,4.11651969,3007.4,3006.5,0.002]
[1768933058996,3.32483994,3007.7,3006.5,8.77938996]
[1768933059191,0.545,3007.6,3007.1,8.77938996]
[1768933059408,0.001,3007.4,3007.1,8.70466855]
[1768933059640,0.001,3007.4,3006.6,8.77738996]
[1768933060097,0.546,3007.4,3006.6,8.77738996]
[1768933060297,0.546,3007.4,3006.9,8.77738996]
[1768933061098,0.546,3007.4,3006.8,8.77938996]
[1768933061299,3.871159,3007.4,3006.8,8.77938996]
[1768933061539,1.6891503,3007.4,3006.8,8.77938996]
[1768933061842,0.001,3007.4,3006.8,8.77938996]
[1768933065316,4.17553924,3007.4,3006.8,0.002]
[1768933066147,7.50071481,3007.4,3006.8,0.002]
[1768933066346,4.17553924,3007.4,3006.8,0.002]
[1768933066554,5.25809415,3007.4,3006.8,0.002]
[1768933066713,8.58324139,3007.4,3006.8,0.002]
[1768933066945,5.25809415,3007.4,3006.8,0.002]
[1768933067456,8.58323656,3007.4,3006.8,0.002]
[1768933067827,4.15826545,3007.3,3006.8,0.002]
[1768933068030,1.40169917,3007.2,3006.8,0.002]
[1768933068533,4.69517926,3007.2,3006.8,0.002]
[1768933068734,4.69517926,3007.2,3006.5,8.72768052]
[1768933068931,0.545,3007.2,3006.5,8.72768052]
[1768933069815,3.87039771,3007.2,3006.5,8.72768052]
[1768933071143,8.00458905,3007.2,3006.5,8.72768052]
[1768933071344,1.13299369,3007.1,3006.5,8.72768052]
[1768933071639,4.45849683,3007.1,3006.5,8.72768052]
[1768933072341,7.78399997,3007.1,3006.5,8.72768052]
[1768933072540,4.45849683,3007.1,3006.5,8.72768052]
[1768933072745,8.57716619,3007.1,3006.5,8.72768052]
[1768933073043,5.03088598,3007.0,3006.5,4.1e-06]
[1768933073223,5.03088598,3007.0,3006.1,8.72767642]
[1768933073538,0.91221662,3007.0,3006.1,8.72767642]
[1768933073741,3.87041117,3007.2,3006.1,8.72767642]
[1768933074729,0.545,3007.1,3006.1,8.72767642]
[1768933075042,4.11103033,3007.3,3006.1,8.72767642]
[1768933075347,7.43633067,3007.3,3006.1,8.72767642]
[1768933075652,0.545,3007.2,3006.1,8.72767642]
[1768933075857,4.25748684,3007.2,3006.3,8.72767642]
[1768933076143,8.35346077,3007.2,3006.3,8.72767642]
[1768933076349,0.545,3007.1,3006.3,8.72767642]
[1768933076716,0.545,3007.1,3005.9,8.72767642]
[1768933076717,4.08859122,3007.0,3005.9,8.72767642]
[1768933077045,4.9239373,3007.0,3005.9,8.72767642]
[1768933077418,4.9239373,3007.0,3005.8,0.002]
[1768933077944,4.08130474,3006.8,3005.5,8.72967642]
[1768933078151,4.08130474,3006.6,3005.5,8.72967642]
[1768933078347,4.53663178,3006.5,3005.5,8.72967642]
[1768933078919,0.545,3006.4,3005.5,8.72967642]
[1768933080218,3.87128132,3006.4,3005.5,8.72967642]
[1768933080828,0.545,3006.3,3005.5,8.72967642]
[1768933081127,4.60474119,3006.3,3005.5,8.72967642]
[1768933081313,1.12573038,3006.2,3005.5,8.72967642]
[1768933082438,4.60474119,3006.3,3005.5,8.72967642]
[1768933082748,7.93109971,3006.3,3005.5,8.72967642]
[1768933082955,11.25745823,3006.3,3005.5,8.72967642]
[1768933083319,4.04608179,3006.2,3005.5,0.002]
[1768933083525,4.04608179,3006.2,3005.3,8.72767642]
[1768933083720,4.83092221,3006.1,3005.3,8.72767642]
[1768933084162,0.545,3006.0,3005.3,8.72767642]
[1768933084462,7.36596882,3005.9,3005.2,8.72768257]
[1768933084963,4.03917818,3005.9,3005.5,0.002]
[1768933085122,4.03917818,3005.9,3005.2,8.72768257]
[1768933085123,0.79108592,3005.8,3005.2,8.72768257]
[1768933085328,4.82368991,3005.8,3005.2,6.15e-06]
[1768933085566,4.82368991,3005.8,3005.1,0.002]
[1768933085732,4.82368991,3005.8,3005.0,8.72767642]
[1768933085929,4.82368991,3005.8,3005.0,8.62407669]
[1768933086127,4.1295618,3005.6,3004.8,8.72767642]
[1768933086442,4.6683826,3005.5,3004.8,8.72767642]
[1768933086628,4.1233826,3005.4,3004.6,4.45e-06]
[1768933086827,4.1233826,3005.3,3004.0,8.72767642]
[1768933087032,4.12537645,3005.2,3004.0,8.72568257]
[1768933087328,4.12537645,3005.0,3004.0,8.72568257]
[1768933087529,4.58634583,3004.9,3004.0,8.72568257]
[1768933087928,4.58634583,3004.9,3004.0,8.69585379]
[1768933088152,4.58634583,3004.9,3004.0,8.69178998]
[1768933088369,10.80323021,3004.8,3004.0,8.69178998]
[1768933088533,4.69221319,3004.7,3004.0,8.69178998]
[1768933088859,1.13482302,3004.6,3004.0,8.6619617]
[1768933089265,0.46703765,3004.9,3004.0,8.6619617]
[1768933089562,0.545,3004.8,3004.0,8.6619617]
[1768933090374,3.87307519,3004.8,3004.0,8.6619617]
[1768933090572,11.36699265,3004.8,3004.0,8.6619617]
[1768933090770,4.16584227,3004.7,3004.0,8.6619617]
[1768933091767,4.16584227,3004.7,3003.7,0.002]
[1768933091943,1.13669927,3004.6,3003.7,8.72967642]
[1768933092152,0.546,3004.5,3003.7,8.72967642]
[1768933092352,3.87437958,3004.5,3003.7,8.72967642]
[1768933092569,0.546,3004.5,3003.7,8.72967642]
[1768933093351,0.546,3004.4,3003.7,8.72967642]
[1768933094473,3.87447823,3004.4,3003.7,8.72967642]
[1768933094680,5.00968574,3004.4,3003.7,8.72967642]
[1768933095284,1.68120751,3004.4,3003.7,8.72967642]
[1768933095587,0.546,3004.3,3003.7,8.72967642]
[1768933096642,3.87457477,3004.3,3003.7,8.72967642]
[1768933097382,0.546,3004.3,3003.7,8.72967642]
[1768933097681,3.87463081,3004.3,3003.7,8.72967642]
[1768933097894,0.38745055,3004.2,3003.7,8.72967642]
[1768933100255,0.546,3004.1,3003.7,8.72967642]
[1768933100657,0.38745055,3004.2,3003.7,8.72967642]
[1768933100858,0.546,3004.1,3003.7,8.72967642]
[1768933101268,7.43660942,3004.5,3003.7,8.72967642]
[1768933101471,0.546,3004.4,3003.7,8.72967642]
[1768933101680,0.546,3004.3,3003.7,8.72967642]
[1768933102059,0.546,3004.2,3003.7,8.72967642]
[1768933102465,4.64444641,3004.2,3003.7,0.002]
[1768933102881,4.09844641,3004.1,3003.7,0.002]
[1768933104984,0.546,3004.2,3003.7,0.002]
[1768933105490,0.546,3004.1,3003.7,9.37680671]
[1768933105695,0.546,3004.2,3003.8,9.34151484]
[1768933106081,0.546,3004.2,3003.7,9.34351484]
[1768933106397,4.62913865,3005.1,3003.7,9.34351484]
[1768933106600,0.546,3004.8,3003.9,9.34151484]
[1768933106987,3.87407173,3004.8,3003.9,9.34151484]
[1768933107591,8.49546502,3004.8,3003.9,9.34151484]
[1768933109060,0.546,3004.8,3003.9,9.34151484]
[1768933109291,0.546,3004.7,3003.9,9.34151484]
[1768933109606,0.546,3004.7,3004.1,9.34151484]
[1768933110374,0.001,3004.5,3004.1,9.34151484]
[1768933110896,0.001,3004.5,3004.0,10.37659147]
[1768933111066,4.60157596,3004.4,3004.0,0.002]
[1768933111265,4.60157596,3004.4,3003.8,9.34151484]
[1768933111493,0.546,3004.3,3003.8,9.34151484]
[1768933111796,5.14127601,3004.3,3003.7,0.002]
[1768933111988,5.14127601,3004.3,3003.7,9.34351484]
[1768933112966,0.546,3004.3,3003.7,9.34351484]
[1768933113480,4.58991645,3004.5,3003.9,9.34151484]
[1768933113793,0.546,3004.4,3003.9,9.34151484]
[1768933114176,4.58263741,3005.0,3003.9,9.34151484]
[1768933114363,0.001,3005.1,3003.9,9.34151484]
[1768933114569,0.546,3005.0,3003.9,9.34151484]
[1768933114767,0.546,3005.0,3004.1,9.34151484]
[1768933115280,4.57643354,3005.7,3004.1,7.20455259]
[1768933115491,4.57031667,3006.0,3004.2,9.34151484]
[1768933115674,0.546,3005.9,3004.2,9.34151484]
[1768933115977,5.11631667,3005.9,3004.4,9.34151484]
[1768933116197,5.11631667,3005.9,3004.6,9.34151484]
[1768933117103,4.56427137,3005.1,3004.3,9.34151484]
[1768933117282,0.546,3005.0,3004.3,9.34151484]
[1768933117881,0.93336806,3005.0,3004.3,9.34151484]
[1768933119082,0.93336806,3005.0,3003.7,3.33121306]
[1768933119083,4.55236976,3004.8,3003.7,0.002]
[1768933119276,4.55236976,3004.6,3003.7,9.34351484]
[1768933119477,1.3340489,3004.5,3003.7,9.34351484]
[1768933120708,0.546,3004.4,3003.7,9.34351484]
[1768933120907,0.546,3004.3,3003.7,9.34351484]
[1768933121875,3.32789776,3004.9,3003.7,9.34351484]
[1768933122098,0.546,3004.8,3004.1,9.34151484]
[1768933122272,0.38738978,3004.7,3004.1,9.34151484]
[1768933123286,3.32823004,3004.6,3004.1,9.34151484]
[1768933123475,3.32823004,3004.6,3004.0,0.002]
[1768933126088,6.65646008,3004.6,3004.0,0.002]
[1768933126703,3.32823004,3004.6,3004.0,0.002]
[1768933126912,0.70437428,3004.5,3004.0,0.002]
[1768933127202,0.546,3004.4,3004.0,0.002]
[1768933128682,3.87446648,3004.4,3004.0,0.002]
[1768933129313,0.546,3004.4,3004.0,0.002]
[1768933129892,3.32856239,3004.3,3004.0,0.002]
[1768933130099,0.38745624,3004.2,3003.7,8.75218964]
[1768933130420,3.87447074,3004.4,3003.8,8.7834808]
[1768933130610,3.87447074,3004.4,3003.8,8.75018964]
[1768933130922,9.11614045,3004.4,3003.8,8.75018964]
[1768933131226,5.24166971,3004.2,3003.8,8.75018964]
[1768933131450,4.47161353,3003.8,3003.3,0.002]
[1768933131717,8.88609266,3003.2,3002.4,0.002]
[1768933131916,5.24166971,3002.8,3002.3,8.75018964]
[1768933132234,5.24166971,3002.4,3002.1,0.002]
[1768933132384,5.24166971,3002.4,3002.0,0.002]
[1768933132795,0.546,3002.3,3001.7,8.75018964]
[1768933132991,0.546,3002.3,3001.4,9.29718964]
[1768933133596,3.33089068,3002.2,3001.4,8.75018964]
[1768933133796,1.48920927,3002.3,3001.4,8.75018964]
[1768933133797,9.43209266,3002.3,3001.4,8.75018964]
[1768933134213,12.76288131,3002.3,3001.4,8.75018964]
[1768933134406,0.546,3002.2,3001.4,8.75018964]
[1768933135103,9.43209266,3002.2,3001.1,9.29319989]
[1768933135297,11.04146078,3002.2,3001.2,9.67950963]
[1768933135744,14.37238392,3002.2,3001.2,9.67950963]
[1768933136640,17.70330706,3002.2,3001.2,9.67950963]
[1768933136833,14.37238392,3002.2,3001.2,9.67950963]
[1768933137038,14.37238392,3002.2,3001.3,1.02225199]
[1768933137619,17.70330706,3002.2,3001.3,1.02225199]
[1768933138008,0.546,3002.1,3001.4,8.75018964]
[1768933138631,9.43209266,3002.1,3001.2,8.75018964]
[1768933140036,12.76309462,3002.1,3001.2,8.75018964]
[1768933140238,8.88609266,3002.1,3001.2,8.75018964]
[1768933140450,0.546,3002.0,3001.2,8.75018964]
[1768933140609,0.546,3002.0,3001.2,10.01272626]
[1768933141138,9.43209266,3002.0,3001.2,10.01272626]
[1768933141339,9.43209266,3002.0,3001.2,8.75018964]
[1768933141671,9.99300981,3002.1,3000.6,8.75018964]
[1768933141672,8.88609266,3001.8,3000.6,8.75018964]
[1768933141949,8.88609266,3001.4,2999.9,0.00011561]
[1768933142103,8.88609266,3001.2,2999.9,0.00011561]
[1768933142304,8.88609266,3001.0,2999.9,8.75030525]
[1768933142552,9.43209266,3000.9,2999.9,8.75030525]
[1768933144348,8.88609266,3000.9,2999.9,8.75030525]
[1768933145125,0.546,3001.0,3000.2,8.75018964]
[1768933145852,0.546,3001.0,3000.4,8.75018964]
[1768933146153,0.546,3001.0,3000.5,0.87501896]
[1768933146528,0.546,3001.0,3000.5,9.6252086]
[1768933147856,12.76432869,3001.0,3000.4,0.002]
[1768933148056,16.09656472,3001.0,3000.4,0.002]
[1768933148265,8.88609266,3000.9,3000.4,0.002]
[1768933148423,12.21853734,3000.8,3000.0,4.09e-06]
[1768933148957,8.88609266,3000.8,3000.0,4.09e-06]
[1768933150560,12.2186094,3000.8,3000.0,4.09e-06]
[1768933151225,8.88609266,3000.8,3000.0,4.09e-06]
[1768933151422,12.21858888,3000.8,3000.0,4.09e-06]
[1768933151623,13.56715249,3000.8,3000.0,4.09e-06]
[1768933152024,8.88609266,3000.7,3000.0,4.09e-06]
[1768933152223,8.88609266,3000.5,3000.0,4.09e-06]
[1768933153062,3.87866893,3000.6,3000.0,4.09e-06]
[1768933153562,0.546,3000.5,3000.0,4.09e-06]
[1768933154186,8.88609266,3000.7,3000.0,4.09e-06]
[1768933154459,0.546,3000.6,3000.0,8.75019373]
[1768933155043,0.546,3000.5,3000.0,8.75019373]
[1768933155662,0.546,3000.5,3000.0,4.09e-06]
[1768933156238,0.547,3000.4,3000.0,4.09e-06]
[1768933157069,3.8799175,3000.4,3000.0,4.09e-06]
[1768933157264,0.547,3000.4,3000.0,4.09e-06]
[1768933157982,3.33144551,3001.7,3000.0,4.09e-06]
[1768933158137,8.66646981,3001.1,3000.0,8.95110796]
[1768933158336,0.547,3001.0,3000.2,8.95110387]
[1768933158537,9.21346981,3001.0,3000.2,8.95110387]
[1768933158779,0.92134698,3000.9,3000.3,0.002]
[1768933158987,0.001,3000.7,3000.3,0.002]
[1768933159184,0.001,3000.7,3000.0,8.95110796]
[1768933159336,0.42647917,3000.7,3000.0,8.95110796]
[1768933159536,0.547,3000.6,3000.0,8.95110796]
[1768933159852,0.547,3000.6,3000.0,4.09e-06]
[1768933159853,9.21346981,3000.6,3000.0,4.09e-06]
[1768933160949,11.99924768,3000.5,3000.0,4.09e-06]
[1768933161669,0.547,3000.4,3000.0,4.09e-06]
[1768933162345,0.547,3000.3,3000.0,4.09e-06]
[1768933162747,1.19991947,3000.4,3000.0,4.09e-06]
[1768933162956,0.547,3000.4,3000.0,4.09e-06]
[1768933165509,0.547,3000.4,2999.9,0.00011561]
[1768933165510,8.66646981,3000.3,2999.9,0.00011561]
[1768933165640,9.92111268,3000.2,2999.5,0.002]
[1768933165844,9.92111268,3000.2,2999.5,0.00099984]
[1768933166973,11.99980314,3000.0,2999.5,0.00099984]
[1768933167140,15.33313647,3000.0,2999.2,8.95110387]
[1768933167341,11.99980314,3000.0,2999.2,8.95110387]
[1768933167571,13.71327175,3000.0,2999.2,8.95110387]
[1768933167776,5.04680194,3000.0,2999.2,8.95110387]
[1768933168080,3.88026552,3000.1,2999.2,8.95110387]
[1768933168953,12.54673533,3000.1,2999.2,8.95110387]
[1768933169871,0.547,3000.0,2999.2,8.95110387]
[1768933170241,2.51,3000.6,2999.5,8.95110387]
[1768933170440,0.001,3000.7,2999.7,8.95110387]
[1768933170654,0.547,3000.6,2999.9,8.95110387]
[1768933172641,3.8797166,3000.6,2999.9,8.95110387]
[1768933172847,0.547,3000.6,2999.9,8.95110387]
[1768933173388,0.547,3000.5,2999.9,8.95110387]
[1768933175086,3.8797977,3000.5,2999.9,8.95110387]
[1768933175291,17.10932281,3000.5,2999.6,8.95310387]
[1768933175460,0.547,3000.4,2999.6,8.95310387]
[1768933175660,0.547,3000.3,2999.7,8.95110387]
[1768933176484,0.547,3000.3,2999.8,8.95110387]
[1768933176683,0.547,3000.3,3000.0,8.95110387]
[1768933177961,0.547,3000.5,3000.0,8.95110387]
[1768933180761,0.001,3000.7,3000.0,8.95110387]
[1768933180986,0.547,3001.0,3000.1,8.95110387]
[1768933182055,0.547,3001.0,3000.3,8.95110387]
[1768933182259,0.547,3001.0,3000.3,10.17952537]
[1768933182990,3.33207884,3001.2,3000.3,10.17952537]
[1768933183179,0.547,3001.1,3000.3,10.17952537]
[1768933184356,9.26104709,3001.0,3000.1,9.6936532]
[1768933185061,0.547,3000.9,3000.1,9.6936532]
[1768933185990,0.547,3000.8,3000.2,9.52929184]
[1768933186192,0.547,3000.9,3000.2,9.49596073]
[1768933187079,9.81900246,3000.9,3000.2,9.49596073]
[1768933187279,9.27200246,3000.8,2999.9,9.49596073]
[1768933187463,9.27200246,3000.8,3000.0,9.49596073]
[1768933187994,0.547,3000.9,3000.0,9.49596073]
[1768933188993,0.547,3000.9,3000.1,9.49596073]
[1768933189368,9.27200246,3001.2,3000.1,9.49596073]
[1768933189691,2.88819923,3002.1,3000.1,9.49596073]
[1768933189692,0.547,3001.1,3000.1,9.49596073]
[1768933189991,0.547,3001.1,3000.3,9.49596073]
[1768933191189,9.81900246,3001.1,3000.3,9.49596073]
[1768933191403,9.27200246,3001.0,3000.1,9.49596073]
[1768933194308,0.001,3000.7,3000.1,9.49596073]
[1768933194501,0.001,3000.7,3000.2,9.49596073]
[1768933195567,0.001,3000.7,3000.3,9.49596073]
[1768933195983,0.001,3000.7,3000.1,10.87932884]
[1768933196883,0.001,3000.7,3000.2,9.49596073]
[1768933197069,9.27200246,3001.7,3000.2,10.04396073]
[1768933197269,0.547,3001.6,3000.4,9.49596073]
[1768933197478,9.81900246,3001.6,3000.4,9.49596073]
[1768933197907,3.33165622,3001.6,3000.4,9.49596073]
[1768933198217,9.81900246,3001.5,3000.5,9.49596073]
[1768933198516,9.81900246,3001.5,3000.7,9.49596073]
[1768933199099,0.547,3001.4,3000.7,9.49596073]
[1768933199570,3.33156761,3001.6,3000.7,9.49596073]
[1768933199913,0.547,3001.5,3000.7,9.49596073]
[1768933200079,1.62162027,3001.5,3000.7,9.49596073]
[1768933200283,0.547,3001.4,3000.7,9.49596073]
[1768933201304,9.27200246,3001.7,3000.7,9.49596073]
[1768933201479,9.81900246,3001.4,3000.4,9.49596073]
[1768933201819,10.25390271,3001.3,3000.4,9.49596073]
[1768933202205,0.98190025,3001.3,3000.4,9.49596073]
[1768933202413,0.547,3001.4,3000.4,9.49596073]
[1768933202414,9.81900246,3001.4,3000.4,9.49596073]
[1768933202598,0.547,3001.3,3000.4,12.82883733]
[1768933202795,0.547,3001.3,3000.5,9.49596073]
[1768933203275,9.81900246,3001.3,3000.5,9.49596073]
[1768933204083,9.27200246,3001.1,2999.7,9.49596073]
[1768933204283,9.27200246,3001.1,2999.9,9.49596073]
[1768933205722,9.27200246,3001.1,2999.7,9.49596073]
[1768933205893,9.27200246,3001.1,3000.4,0.002]
[1768933206079,9.27200246,3000.9,2999.7,9.49196893]
[1768933206279,9.27200246,3000.7,2999.7,9.49196893]
[1768933206511,9.27200246,3000.7,2999.6,0.002]
[1768933206678,9.27200246,3000.7,2999.6,2.05e-06]
[1768933207488,9.27200246,3000.3,2999.4,0.002]
[1768933207691,9.27200246,3000.1,2998.6,10.04396073]
[1768933207913,9.27200246,2999.9,2998.6,10.04396073]
[1768933208178,9.27200246,2999.7,2998.6,9.49596073]
[1768933209498,9.27200246,2999.7,2998.8,9.49796073]
[1768933209701,0.547,2999.6,2998.8,9.49796073]
[1768933210082,6.66777796,2999.5,2998.8,9.49796073]
[1768933210520,9.27200246,2999.4,2998.8,0.002]
[1768933210741,1.59397804,2999.3,2998.8,0.002]
[1768933210934,0.547,2999.2,2998.8,0.002]
[1768933211330,9.81900246,2999.2,2998.8,0.002]
[1768933212219,0.547,2999.2,2998.8,0.002]
[1768933216425,3.88122553,2999.2,2998.8,0.002]
[1768933216649,0.54752036,2999.1,2998.8,0.002]
[1768933218711,9.86619775,2999.0,2998.8,0.002]
[1768933218911,9.86619775,2999.0,2998.3,9.7489173]
[1768933219609,9.86619775,2999.0,2998.2,0.002]
[1768933219818,9.86619775,2999.0,2998.2,9.7509173]
[1768933220027,1.37480517,2998.9,2998.2,9.7509173]
[1768933220236,0.547,2998.8,2998.2,9.7509173]
[1768933220429,3.88168648,2998.8,2998.2,9.7509173]
[1768933220619,0.547,2998.8,2998.2,9.7509173]
[1768933221026,11.78796757,2998.8,2998.2,9.7509173]
[1768933222116,11.68796757,2998.8,2998.2,9.7509173]
[1768933222443,1.92176982,2998.8,2998.2,9.7509173]
[1768933222640,0.547,2998.8,2998.2,9.7509173]
[1768933223717,0.547,2998.7,2998.2,9.7509173]
[1768933224051,10.41319775,2998.7,2998.2,0.002]
[1768933224570,9.86619775,2998.6,2998.2,0.002]
[1768933224715,11.57447827,2998.5,2998.2,0.002]
[1768933225739,1.70828052,2998.5,2998.2,0.002]
[1768933226847,5.04328383,2998.5,2998.2,0.002]
[1768933227353,1.70828052,2998.5,2998.2,0.002]
[1768933227721,11.57447827,2998.5,2998.2,0.002]
[1768933228052,1.49094251,2998.4,2998.2,0.002]
[1768933228252,0.547,2998.3,2998.2,0.002]
[1768933228755,9.86619775,2998.2,2997.4,0.549]
[1768933229048,9.86619775,2998.2,2997.4,9.7489173]
[1768933229425,10.9125269,2998.2,2996.3,3.33734582]
[1768933229624,10.9125269,2998.2,2996.4,9.7489173]
[1768933230059,10.9125269,2998.2,2996.4,9.74292345]
[1768933230263,10.9125269,2998.2,2997.0,0.002]
[1768933230630,9.86619775,2998.0,2996.5,9.7469214]
[1768933230831,9.86619775,2997.8,2996.5,9.7469214]
[1768933231032,2.32079809,2997.9,2996.5,3.33714881]
[1768933231343,0.547,2997.8,2996.6,9.7489173]
[1768933231520,9.86619775,2997.7,2996.6,9.7489173]
[1768933232051,9.86619775,2997.7,2996.3,9.7489173]
[1768933232752,9.86619775,2997.5,2996.4,9.7489173]
[1768933232955,0.547,2997.4,2996.4,9.7489173]
[1768933233163,10.41319775,2997.4,2996.3,9.7489173]
[1768933233365,9.86619775,2997.4,2996.4,9.7489173]
[1768933233564,0.547,2997.3,2996.6,9.7489173]
[1768933234235,3.33600213,2997.6,2996.6,9.7489173]
[1768933234236,0.547,2997.2,2996.6,9.7489173]
[1768933234554,9.86619775,2997.6,2996.6,9.7489173]
[1768933234760,13.20242247,2997.4,2996.6,9.7489173]
[1768933235641,9.86619775,2997.4,2996.6,9.7489173]
[1768933235847,2.20080842,2997.5,2996.6,9.7489173]
[1768933236044,4.98992212,2997.5,2996.6,9.7489173]
[1768933236250,10.41319775,2997.4,2996.6,9.7489173]
[1768933236768,13.74948796,2997.4,2996.6,9.7489173]
[1768933236934,10.41319775,2997.4,2996.6,9.7489173]
[1768933237967,9.86619775,2997.3,2996.6,9.7489173]
[1768933238176,9.86619775,2997.3,2996.2,9.7489173]
[1768933238351,9.86619775,2997.1,2995.8,9.7489173]
[1768933238539,9.86619775,2996.9,2995.6,9.7489173]
[1768933238873,9.86619775,2996.7,2994.9,9.7489173]
[1768933239037,9.86619775,2996.5,2994.9,9.7489173]
[1768933239387,9.86619775,2996.5,2995.1,9.7489173]
[1768933239668,9.86619775,2996.3,2995.1,9.7489173]
[1768933240678,9.86619775,2996.3,2994.6,9.7489173]
[1768933240878,9.86619775,2995.9,2994.6,9.7489173]
[1768933241047,9.86619775,2995.7,2994.6,9.7489173]
[1768933241247,1.04131978,2996.2,2994.7,9.7489173]
[1768933241248,4.3789038,2996.2,2994.7,9.7489173]
[1768933241481,10.41319775,2996.1,2994.7,9.7489173]
[1768933241872,10.41319775,2996.1,2994.5,9.7489173]
[1768933242077,9.86619775,2996.1,2994.9,9.7489173]
[1768933242274,10.41319775,2996.0,2994.9,9.7489173]
[1768933242595,10.41319775,2996.0,2994.8,0.002]
[1768933242789,6.67579024,2995.9,2994.8,0.002]
[1768933242961,9.86619775,2995.8,2994.8,0.002]
[1768933244474,9.86619775,2995.8,2994.5,0.002]
[1768933244676,9.91567708,2995.6,2994.5,9.15630789]
[1768933244895,9.91567708,2995.4,2994.5,0.002]
[1768933245091,0.547,2995.3,2994.5,9.26599671]
[1768933245270,0.547,2995.2,2994.5,9.26599671]
[1768933245455,0.547,2995.2,2994.5,0.002]
[1768933245660,9.72751574,2995.2,2994.5,0.002]
[1768933245889,9.72751574,2995.2,2994.3,0.76685465]
[1768933246905,0.548,2995.1,2994.3,0.76685465]
[1768933247089,0.97285157,2995.0,2994.3,0.76685465]
[1768933248085,0.97285157,2995.0,2994.3,10.03085136]
[1768933248302,0.548,2994.9,2994.3,10.03085136]
[1768933248476,0.548,2994.8,2994.3,10.03085136]
[1768933249195,0.548,2994.7,2994.3,10.03085136]
[1768933249874,9.18051574,2995.4,2994.4,0.01972838]
[1768933250101,0.548,2995.3,2994.5,9.26399671]
[1768933250281,0.97285157,2995.3,2994.5,9.26399671]
[1768933250483,9.84803254,2996.1,2994.7,9.26399671]
[1768933250691,0.6675168,2996.1,2994.7,9.26399671]
[1768933250881,9.18051574,2996.4,2994.9,9.26399671]
[1768933250882,0.548,2996.0,2994.9,9.26399671]
[1768933251081,0.548,2996.0,2995.1,9.26399671]
[1768933251417,0.548,2996.3,2995.1,9.26399671]
[1768933252500,9.72851574,2996.3,2995.1,9.26399671]
[1768933252687,10.70136731,2996.3,2995.3,9.26399671]
[1768933252892,10.15336731,2996.3,2995.3,9.26399671]
[1768933253093,0.548,2996.2,2995.3,9.26399671]
[1768933254085,0.548,2996.2,2995.4,9.26399671]
[1768933254923,3.88557457,2996.2,2995.4,9.26399671]
[1768933255222,0.001,2996.1,2995.4,9.26399671]
[1768933255580,0.548,2996.0,2995.4,9.26399671]
[1768933255797,0.001,2996.1,2995.4,10.32191533]
[1768933255998,0.001,2996.1,2995.5,9.26399671]
[1768933256200,0.549,2996.1,2995.5,9.26399671]
[1768933256637,0.549,2996.1,2995.4,1.05791862]
[1768933256804,9.72951574,2996.1,2995.3,9.26399671]
[1768933257129,0.549,2996.1,2995.3,9.26399671]
[1768933257313,0.001,2996.1,2995.3,9.26399671]
[1768933257496,0.548,2996.0,2995.3,9.26399671]
[1768933258732,0.548,2996.0,2995.4,9.26399671]
[1768933258933,0.548,2996.0,2995.6,9.26399671]
[1768933259094,0.549,2996.1,2995.6,9.26399671]
[1768933259299,0.001,2996.1,2995.6,9.26399671]
[1768933260298,0.001,2996.1,2995.7,9.26399671]
[1768933260524,0.548,2996.4,2995.7,9.26399671]
[1768933260740,0.548,2996.4,2995.9,9.26399671]
[1768933261448,0.548,2996.4,2995.8,1.26021943]
[1768933261613,13.06586733,2996.4,2995.6,9.26399671]
[1768933262336,9.72851574,2996.4,2995.6,9.26399671]
[1768933262731,13.06589036,2996.4,2995.6,9.26399671]
[1768933264338,9.72851574,2996.4,2995.6,9.26399671]
[1768933264538,0.548,2996.4,2995.6,9.26399671]
[1768933264839,1.30656927,2996.4,2995.6,9.26399671]
[1768933265044,0.548,2996.3,2995.6,9.26399671]
[1768933265933,1.30656927,2996.4,2995.6,9.26399671]
[1768933266155,4.21862319,2996.8,2995.6,9.26399671]
[1768933266156,12.51802955,2997.2,2995.7,9.81299671]
[1768933266439,12.51802955,2997.2,2995.9,9.26399671]
[1768933266614,0.548,2997.1,2995.9,9.26399671]
[1768933266808,0.001,2996.2,2995.9,9.26399671]
[1768933267010,12.51802955,2997.2,2995.9,9.26399671]
[1768933267212,1.58543907,2997.1,2996.1,9.26399671]
[1768933267458,0.548,2997.0,2996.1,9.26399671]
[1768933269146,0.548,2997.1,2996.2,9.26399671]
[1768933269341,0.549,2997.2,2996.2,9.26399671]
[1768933269544,0.549,2997.2,2996.4,9.26399671]
[1768933269737,3.88545078,2997.2,2996.4,9.26399671]
[1768933270044,0.549,2997.2,2996.4,9.26399671]
[1768933270247,0.001,2997.2,2996.4,9.26399671]
[1768933271423,0.001,2997.2,2996.6,9.26399671]